[Event "Early-Titled-Tuesday-Blitz-July-09-2024"]
[Site "Chess.com"]
[Date "2024.07.09"]
[Round "10"]
[White "kritipatel"]
[Black "AlainBruxelles"]
[Result "1-0"]
[WhiteElo "2130"]
[BlackElo "2244"]
[TimeControl "180+1"]
[EndTime "9:54:34 PDT"]
[Termination "kritipatel won by resignation"]

1. e4 {[%clk 0:03:00.9]} 1... e5 {[%clk 0:02:56.3]} 2. Nf3 {[%clk 0:03:00.4]}
2... Nc6 {[%clk 0:02:56.5]} 3. Bc4 {[%clk 0:03:00.8]} 3... Nf6 {[%clk
0:02:55.9]} 4. d3 {[%clk 0:03:01.2]} 4... Bc5 {[%clk 0:02:55.2]} 5. c3 {[%clk
0:03:01.3]} 5... a6 {[%clk 0:02:53.8]} 6. Bb3 {[%clk 0:02:59.5]} 6... O-O {[%clk
0:02:53.7]} 7. Nbd2 {[%clk 0:02:59.3]} 7... Ba7 {[%clk 0:02:53.6]} 8. h3 {[%clk
0:02:57.9]} 8... d6 {[%clk 0:02:52.4]} 9. Nf1 {[%clk 0:02:57.9]} 9... Ne7 {[%clk
0:02:52.9]} 10. Ng3 {[%clk 0:02:49.8]} 10... Ng6 {[%clk 0:02:52.6]} 11. O-O
{[%clk 0:02:50.2]} 11... h6 {[%clk 0:02:52.2]} 12. d4 {[%clk 0:02:50.4]} 12...
Qe7 {[%clk 0:02:48.2]} 13. Qe2 {[%clk 0:02:45.9]} 13... Be6 {[%clk 0:02:47]} 14.
Be3 {[%clk 0:02:40]} 14... Bxb3 {[%clk 0:02:45.3]} 15. axb3 {[%clk 0:02:38.6]}
15... Nf4 {[%clk 0:02:40.6]} 16. Qd2 {[%clk 0:02:30.2]} 16... N6h5 {[%clk
0:02:39.3]} 17. Nf5 {[%clk 0:02:24]} 17... Qf6 {[%clk 0:02:36.6]} 18. Kh2 {[%clk
0:02:07.9]} 18... Kh7 {[%clk 0:02:31.9]} 19. g4 {[%clk 0:01:51.3]} 19... g6
{[%clk 0:02:27.1]} 20. gxh5 {[%clk 0:01:45.9]} 20... gxf5 {[%clk 0:02:27.4]} 21.
Bxf4 {[%clk 0:01:46]} 21... fxe4 {[%clk 0:02:26.5]} 22. dxe5 {[%clk 0:01:36.9]}
22... dxe5 {[%clk 0:02:19.2]} 23. Nxe5 {[%clk 0:01:36.9]} 23... Rad8 {[%clk
0:02:14.5]} 24. Nd7 {[%clk 0:00:50]} 24... Qf5 {[%clk 0:02:11.9]} 25. Rad1
{[%clk 0:00:48.9]} 25... Rxd7 {[%clk 0:02:07.4]} 26. Qxd7 {[%clk 0:00:44.6]}
26... Qxf4+ {[%clk 0:02:07.5]} 27. Kh1 {[%clk 0:00:42.2]} 27... Qf3+ {[%clk
0:02:07]} 28. Kh2 {[%clk 0:00:41.6]} 28... Bb8 {[%clk 0:02:04.1]} 29. Qg4 {[%clk
0:00:35.7]} 29... c5+ {[%clk 0:02:01.3]} 30. Kg1 {[%clk 0:00:35.6]} 30... Rg8
{[%clk 0:01:57.2]} 31. Qxg8+ {[%clk 0:00:33.4]} 31... Kxg8 {[%clk 0:01:57.2]}
32. Rd8+ {[%clk 0:00:34]} 32... Kh7 {[%clk 0:01:56.5]} 33. Rxb8 {[%clk
0:00:34.5]} 33... Qg3+ {[%clk 0:01:56.1]} 34. fxg3 {[%clk 0:00:34.3]} 1-0

[Event "Early-Titled-Tuesday-Blitz-July-09-2024"]
[Site "Chess.com"]
[Date "2024.07.09"]
[Round "10"]
[White "JEHUBNER"]
[Black "MANOJ_MISHRA123"]
[Result "0-1"]
[WhiteElo "2014"]
[BlackElo "2255"]
[TimeControl "180+1"]
[EndTime "9:54:43 PDT"]
[Termination "MANOJ_MISHRA123 won by resignation"]

1. e4 {[%clk 0:03:00.9]} 1... Nf6 {[%clk 0:03:00.9]} 2. Nc3 {[%clk 0:02:55.3]}
2... d5 {[%clk 0:03:00.3]} 3. e5 {[%clk 0:02:53.7]} 3... d4 {[%clk 0:02:57.7]}
4. exf6 {[%clk 0:02:52.1]} 4... dxc3 {[%clk 0:02:56.9]} 5. fxe7 {[%clk 0:02:50]}
5... cxd2+ {[%clk 0:02:55.4]} 6. Bxd2 {[%clk 0:02:45.5]} 6... Bxe7 {[%clk
0:02:54.8]} 7. Nf3 {[%clk 0:02:45.1]} 7... Nc6 {[%clk 0:02:50.1]} 8. Bb5 {[%clk
0:02:40.2]} 8... Qd5 {[%clk 0:02:48]} 9. c4 {[%clk 0:02:34.5]} 9... Qe4+ {[%clk
0:02:46.6]} 10. Qe2 {[%clk 0:02:34.4]} 10... Qxe2+ {[%clk 0:02:45.9]} 11. Kxe2
{[%clk 0:02:35.3]} 11... O-O {[%clk 0:02:45.7]} 12. Rhe1 {[%clk 0:02:35.6]}
12... Bg4 {[%clk 0:02:42.1]} 13. Be3 {[%clk 0:02:26.3]} 13... Bb4 {[%clk
0:02:32.2]} 14. Red1 {[%clk 0:02:20.5]} 14... Ne5 {[%clk 0:02:32.1]} 15. a3
{[%clk 0:02:16.3]} 15... Be7 {[%clk 0:02:21.6]} 16. Rd5 {[%clk 0:02:06.1]} 16...
Bf6 {[%clk 0:02:09]} 17. Rd2 {[%clk 0:02:01.1]} 17... c6 {[%clk 0:02:03]} 18.
Ba4 {[%clk 0:01:58.8]} 18... Nxc4 {[%clk 0:02:02.9]} 19. Rc2 {[%clk 0:01:58.7]}
19... Nxb2 {[%clk 0:02:00.4]} 20. Rxb2 {[%clk 0:01:48.7]} 20... Bxb2 {[%clk
0:01:59.1]} 21. Rb1 {[%clk 0:01:49.4]} 21... Bxa3 {[%clk 0:01:58.3]} 22. Rxb7
{[%clk 0:01:49.7]} 22... c5 {[%clk 0:01:56.3]} 23. Kd3 {[%clk 0:01:45.2]} 23...
Rfd8+ {[%clk 0:01:52.9]} 24. Kc4 {[%clk 0:01:44.9]} 24... Be6+ {[%clk 0:01:51]}
25. Kc3 {[%clk 0:01:43.6]} 25... Bb4+ {[%clk 0:01:49.4]} 26. Kc2 {[%clk
0:01:43.9]} 26... Bf5+ {[%clk 0:01:47.6]} 27. Kb3 {[%clk 0:01:43.7]} 27... Rd3+
{[%clk 0:01:46]} 28. Kc4 {[%clk 0:01:43.8]} 28... Rad8 {[%clk 0:01:44.6]} 29.
Ne5 {[%clk 0:01:41.3]} 29... Rc3+ {[%clk 0:01:39.8]} 30. Kb5 {[%clk 0:01:40.3]}
30... f6 {[%clk 0:01:38.4]} 31. Nc6 {[%clk 0:01:28.1]} 31... a6+ {[%clk
0:01:26.8]} 32. Kxa6 {[%clk 0:01:23.1]} 32... Ra8+ {[%clk 0:01:26]} 33. Na7
{[%clk 0:01:22.3]} 33... Ra3 {[%clk 0:01:20.6]} 34. Kb5 {[%clk 0:01:20.3]} 34...
Bd3+ {[%clk 0:01:19.4]} 35. Kc6 {[%clk 0:01:17.1]} 35... Be4+ {[%clk 0:01:16.6]}
0-1

[Event "Early-Titled-Tuesday-Blitz-July-09-2024"]
[Site "Chess.com"]
[Date "2024.07.09"]
[Round "10"]
[White "ArmanGhevondyanchess"]
[Black "Shankland"]
[Result "0-1"]
[WhiteElo "2749"]
[BlackElo "2894"]
[TimeControl "180+1"]
[EndTime "9:54:49 PDT"]
[Termination "Shankland won by resignation"]

1. Nf3 {[%clk 0:03:00.9]} 1... d5 {[%clk 0:02:59.6]} 2. d4 {[%clk 0:03:00.8]}
2... Nf6 {[%clk 0:02:59.2]} 3. g3 {[%clk 0:03:01.3]} 3... c6 {[%clk 0:02:58.2]}
4. Bg2 {[%clk 0:03:01.7]} 4... Bf5 {[%clk 0:02:58.3]} 5. O-O {[%clk 0:03:02.2]}
5... e6 {[%clk 0:02:58.6]} 6. c4 {[%clk 0:03:02.6]} 6... h6 {[%clk 0:02:56.9]}
7. Nc3 {[%clk 0:03:02.8]} 7... Be7 {[%clk 0:02:56.4]} 8. Nd2 {[%clk 0:03:03.1]}
8... O-O {[%clk 0:02:55.5]} 9. e4 {[%clk 0:03:03.6]} 9... dxe4 {[%clk 0:02:56]}
10. Ndxe4 {[%clk 0:03:04.5]} 10... Nbd7 {[%clk 0:02:56.4]} 11. Be3 {[%clk
0:03:04.5]} 11... Nxe4 {[%clk 0:02:52]} 12. Nxe4 {[%clk 0:03:05.4]} 12... Nf6
{[%clk 0:02:52.2]} 13. Nc3 {[%clk 0:03:03.1]} 13... Qc7 {[%clk 0:02:50.9]} 14.
Qe2 {[%clk 0:03:03]} 14... Rad8 {[%clk 0:02:49]} 15. Rac1 {[%clk 0:03:02]} 15...
Rfe8 {[%clk 0:02:48.1]} 16. d5 {[%clk 0:02:49.4]} 16... exd5 {[%clk 0:02:46.6]}
17. cxd5 {[%clk 0:02:49.2]} 17... Bc5 {[%clk 0:02:46.8]} 18. dxc6 {[%clk
0:02:47.5]} 18... Bxe3 {[%clk 0:02:45.8]} 19. fxe3 {[%clk 0:02:46.9]} 19... Bd3
{[%clk 0:02:46.2]} 20. Nd5 {[%clk 0:02:17.9]} 20... Rxd5 {[%clk 0:02:44.6]} 21.
cxb7 {[%clk 0:02:15.4]} 21... Qb6 {[%clk 0:02:19.9]} 22. Rxf6 {[%clk 0:02:06.2]}
22... Qxf6 {[%clk 0:02:11.7]} 23. Rc8 {[%clk 0:02:02]} 23... Bxe2 {[%clk
0:02:05.6]} 24. Rxe8+ {[%clk 0:01:58.5]} 24... Kh7 {[%clk 0:02:05.9]} 25. h4
{[%clk 0:01:30.9]} 25... Rb5 {[%clk 0:01:43.5]} 26. b8=Q {[%clk 0:01:24.2]}
26... Rxb8 {[%clk 0:01:43.3]} 27. Rxb8 {[%clk 0:01:25.1]} 27... Bf3 {[%clk
0:01:42.8]} 28. Rb3 {[%clk 0:01:20.2]} 28... Bxg2 {[%clk 0:01:40.1]} 29. Kxg2
{[%clk 0:01:21.1]} 29... Qa6 {[%clk 0:01:39.8]} 30. Ra3 {[%clk 0:01:17.5]} 30...
Qe2+ {[%clk 0:01:39.4]} 31. Kg1 {[%clk 0:01:16]} 31... a5 {[%clk 0:01:36.1]} 32.
b3 {[%clk 0:01:10.2]} 32... Qxe3+ {[%clk 0:01:34.5]} 33. Kg2 {[%clk 0:01:10.2]}
33... Qc3 {[%clk 0:01:33.2]} 34. Ra4 {[%clk 0:01:10]} 34... f5 {[%clk
0:01:33.2]} 35. h5 {[%clk 0:01:08.8]} 35... Qd2+ {[%clk 0:01:31.3]} 36. Kh3
{[%clk 0:01:08.3]} 36... Qd1 {[%clk 0:01:31.5]} 37. Kg2 {[%clk 0:01:03.3]} 37...
Qxh5 {[%clk 0:01:30.7]} 38. Rxa5 {[%clk 0:01:03.7]} 38... Qe2+ {[%clk
0:01:30.9]} 39. Kh3 {[%clk 0:01:01.3]} 39... Qg4+ {[%clk 0:01:27.6]} 40. Kg2
{[%clk 0:00:59.4]} 40... f4 {[%clk 0:01:27.2]} 0-1

[Event "Early-Titled-Tuesday-Blitz-July-09-2024"]
[Site "Chess.com"]
[Date "2024.07.09"]
[Round "10"]
[White "Viacheslav92"]
[Black "TioCridineno"]
[Result "0-1"]
[WhiteElo "2578"]
[BlackElo "2446"]
[TimeControl "180+1"]
[EndTime "9:55:01 PDT"]
[Termination "TioCridineno won by resignation"]

1. e4 {[%clk 0:03:00.9]} 1... c5 {[%clk 0:02:59.7]} 2. Nf3 {[%clk 0:03:00.2]}
2... Nc6 {[%clk 0:02:59.9]} 3. d4 {[%clk 0:03:00.2]} 3... cxd4 {[%clk
0:02:59.9]} 4. Nxd4 {[%clk 0:03:01]} 4... Nf6 {[%clk 0:03:00.1]} 5. Nc3 {[%clk
0:03:00.3]} 5... e5 {[%clk 0:03:00.4]} 6. Ndb5 {[%clk 0:03:00.2]} 6... d6 {[%clk
0:03:00.8]} 7. Nd5 {[%clk 0:03:00.7]} 7... Nxd5 {[%clk 0:03:00.7]} 8. exd5
{[%clk 0:03:01.6]} 8... Nb8 {[%clk 0:03:01.2]} 9. c4 {[%clk 0:03:00.3]} 9... a6
{[%clk 0:03:00.2]} 10. Nc3 {[%clk 0:02:59.8]} 10... Be7 {[%clk 0:03:00.8]} 11.
Be2 {[%clk 0:02:59.2]} 11... O-O {[%clk 0:03:00.8]} 12. O-O {[%clk 0:03:00.1]}
12... Bf5 {[%clk 0:03:00.2]} 13. Bd3 {[%clk 0:02:57]} 13... Qc8 {[%clk
0:02:49.9]} 14. Bxf5 {[%clk 0:02:48.4]} 14... Qxf5 {[%clk 0:02:49]} 15. Qe2
{[%clk 0:02:46.5]} 15... Nd7 {[%clk 0:02:47.3]} 16. Be3 {[%clk 0:02:38.6]} 16...
Rac8 {[%clk 0:02:44]} 17. Rac1 {[%clk 0:02:35.7]} 17... Qg6 {[%clk 0:02:36.4]}
18. f3 {[%clk 0:02:34.8]} 18... f5 {[%clk 0:02:35.2]} 19. Rfd1 {[%clk 0:02:34]}
19... Bg5 {[%clk 0:02:33.9]} 20. Bxg5 {[%clk 0:02:32.8]} 20... Qxg5 {[%clk
0:02:33.9]} 21. b3 {[%clk 0:02:32.4]} 21... Rfe8 {[%clk 0:02:27.6]} 22. Qd2
{[%clk 0:02:31.7]} 22... Qg6 {[%clk 0:02:21]} 23. Qf2 {[%clk 0:02:30.1]} 23...
e4 {[%clk 0:02:12.4]} 24. f4 {[%clk 0:02:23.4]} 24... Nc5 {[%clk 0:02:09.8]} 25.
Rc2 {[%clk 0:02:09.7]} 25... Nd3 {[%clk 0:02:08.7]} 26. Qe3 {[%clk 0:02:08.4]}
26... Qf6 {[%clk 0:02:07]} 27. Ne2 {[%clk 0:02:06.1]} 27... g5 {[%clk 0:01:52]}
28. fxg5 {[%clk 0:01:58.4]} 28... Qe5 {[%clk 0:01:52.3]} 29. g3 {[%clk
0:01:50.4]} 29... Rc7 {[%clk 0:01:51.8]} 30. Nf4 {[%clk 0:01:50]} 30... Nc5
{[%clk 0:01:45.9]} 31. h4 {[%clk 0:01:44.9]} 31... Rg7 {[%clk 0:01:39.9]} 32.
Rf1 {[%clk 0:01:42.5]} 32... a5 {[%clk 0:01:35.6]} 33. Rcf2 {[%clk 0:01:42.3]}
33... h6 {[%clk 0:01:28.5]} 34. Ne6 {[%clk 0:01:29.4]} 34... Nxe6 {[%clk
0:01:24.7]} 35. Rxf5 {[%clk 0:01:29.4]} 35... Qd4 {[%clk 0:01:25]} 36. Re1
{[%clk 0:01:07.5]} 36... Qxe3+ {[%clk 0:01:23]} 37. Rxe3 {[%clk 0:01:08.4]}
37... Nd4 {[%clk 0:01:22.7]} 38. gxh6 {[%clk 0:00:57.2]} 38... Nxf5 {[%clk
0:01:20.5]} 39. hxg7 {[%clk 0:00:56.6]} 39... Nxe3 {[%clk 0:01:20.3]} 0-1

[Event "Early-Titled-Tuesday-Blitz-July-09-2024"]
[Site "Chess.com"]
[Date "2024.07.09"]
[Round "10"]
[White "IlanSchnaider"]
[Black "Mikasinski"]
[Result "1-0"]
[WhiteElo "2841"]
[BlackElo "2693"]
[TimeControl "180+1"]
[EndTime "9:55:03 PDT"]
[Termination "IlanSchnaider won by checkmate"]

1. e4 {[%clk 0:02:59.8]} 1... c5 {[%clk 0:02:59.7]} 2. Nf3 {[%clk 0:02:59.9]}
2... d6 {[%clk 0:02:59.7]} 3. d4 {[%clk 0:02:58.8]} 3... cxd4 {[%clk 0:03:00.6]}
4. Nxd4 {[%clk 0:02:59.7]} 4... Nf6 {[%clk 0:03:00.6]} 5. Nc3 {[%clk 0:03:00.3]}
5... a6 {[%clk 0:03:01.2]} 6. Bc4 {[%clk 0:03:00]} 6... e6 {[%clk 0:02:56]} 7.
Bb3 {[%clk 0:03:00.3]} 7... Nbd7 {[%clk 0:02:51]} 8. O-O {[%clk 0:02:59.4]} 8...
Nc5 {[%clk 0:02:50.7]} 9. Bg5 {[%clk 0:02:56.8]} 9... Be7 {[%clk 0:02:50.4]} 10.
Qf3 {[%clk 0:02:53.6]} 10... h6 {[%clk 0:02:41.2]} 11. Bh4 {[%clk 0:02:51.1]}
11... Qc7 {[%clk 0:02:37.1]} 12. Rad1 {[%clk 0:02:50.3]} 12... O-O {[%clk
0:02:26.3]} 13. Bg3 {[%clk 0:02:47.3]} 13... Rd8 {[%clk 0:02:23]} 14. h3 {[%clk
0:02:43.3]} 14... b5 {[%clk 0:02:22]} 15. e5 {[%clk 0:02:00.9]} 15... Bb7 {[%clk
0:02:12.3]} 16. Qe3 {[%clk 0:01:55.2]} 16... dxe5 {[%clk 0:02:06.1]} 17. Bxe5
{[%clk 0:01:56.1]} 17... Qb6 {[%clk 0:02:03.8]} 18. Qg3 {[%clk 0:01:47.2]} 18...
Rac8 {[%clk 0:01:53.9]} 19. Rfe1 {[%clk 0:01:36]} 19... b4 {[%clk 0:01:51.5]}
20. Na4 {[%clk 0:01:12.1]} 20... Nxa4 {[%clk 0:01:51.6]} 21. Bxa4 {[%clk
0:01:12.7]} 21... Bd5 {[%clk 0:01:26.8]} 22. Bb3 {[%clk 0:01:11.9]} 22... Bxb3
{[%clk 0:01:24.7]} 23. axb3 {[%clk 0:01:12.8]} 23... Rd7 {[%clk 0:01:18.2]} 24.
Nf5 {[%clk 0:01:00.6]} 24... Rxd1 {[%clk 0:00:42.2]} 25. Qxg7# {[%clk 0:01:00]}
1-0

[Event "Early-Titled-Tuesday-Blitz-July-09-2024"]
[Site "Chess.com"]
[Date "2024.07.09"]
[Round "10"]
[White "Defenstrator"]
[Black "glucolisis04"]
[Result "1-0"]
[WhiteElo "2400"]
[BlackElo "2290"]
[TimeControl "180+1"]
[EndTime "9:55:10 PDT"]
[Termination "Defenstrator won by resignation"]

1. Na3 {[%clk 0:02:59.5]} 1... d5 {[%clk 0:02:59.4]} 2. c4 {[%clk 0:03:00.1]}
2... d4 {[%clk 0:02:58.2]} 3. Nc2 {[%clk 0:02:59.5]} 3... e5 {[%clk 0:02:58.1]}
4. d3 {[%clk 0:02:59.3]} 4... c5 {[%clk 0:02:57.1]} 5. e3 {[%clk 0:02:59.9]}
5... Nc6 {[%clk 0:02:56.1]} 6. Nf3 {[%clk 0:03:00.7]} 6... Nf6 {[%clk
0:02:55.9]} 7. Be2 {[%clk 0:03:01.4]} 7... Be7 {[%clk 0:02:55.9]} 8. O-O {[%clk
0:03:02.1]} 8... O-O {[%clk 0:02:56.4]} 9. exd4 {[%clk 0:03:03]} 9... exd4
{[%clk 0:02:48.1]} 10. h3 {[%clk 0:03:02.3]} 10... h6 {[%clk 0:02:44.3]} 11. a3
{[%clk 0:02:55.8]} 11... Bf5 {[%clk 0:02:40.8]} 12. Rb1 {[%clk 0:02:48.5]} 12...
a5 {[%clk 0:02:37.4]} 13. b3 {[%clk 0:02:47.4]} 13... Bd6 {[%clk 0:02:23.8]} 14.
b4 {[%clk 0:02:43.8]} 14... axb4 {[%clk 0:02:22.6]} 15. axb4 {[%clk 0:02:44]}
15... cxb4 {[%clk 0:02:13.6]} 16. Nfxd4 {[%clk 0:02:40.1]} 16... Nxd4 {[%clk
0:02:06.3]} 17. Nxd4 {[%clk 0:02:40.2]} 17... Bg6 {[%clk 0:01:42.6]} 18. Nb5
{[%clk 0:02:34.8]} 18... Bc5 {[%clk 0:01:35]} 19. Be3 {[%clk 0:02:33]} 19...
Bxe3 {[%clk 0:01:31]} 20. fxe3 {[%clk 0:02:33.6]} 20... Qe7 {[%clk 0:01:23.4]}
21. e4 {[%clk 0:02:31.7]} 21... Rfd8 {[%clk 0:01:11.2]} 22. Qb3 {[%clk
0:02:31.2]} 22... Qc5+ {[%clk 0:00:56.2]} 23. Kh1 {[%clk 0:02:31.1]} 23... Nh5
{[%clk 0:00:36.2]} 24. d4 {[%clk 0:02:24.8]} 24... Qg5 {[%clk 0:00:30.4]} 25.
Bxh5 {[%clk 0:02:12.3]} 25... Qxh5 {[%clk 0:00:23.5]} 26. Rbe1 {[%clk
0:02:08.2]} 26... Rac8 {[%clk 0:00:07.7]} 27. Qxb4 {[%clk 0:02:07.9]} 27... Qh4
{[%clk 0:00:02.6]} 28. Nd6 {[%clk 0:02:05.2]} 28... Rxd6 {[%clk 0:00:02.2]} 29.
Qxd6 {[%clk 0:02:05.2]} 29... Bxe4 {[%clk 0:00:02.7]} 30. Qh2 {[%clk 0:01:59.1]}
30... Re8 {[%clk 0:00:02.2]} 31. Rf4 {[%clk 0:01:56.8]} 31... Qe7 {[%clk
0:00:02.1]} 32. Rfxe4 {[%clk 0:01:56.2]} 1-0

[Event "Early-Titled-Tuesday-Blitz-July-09-2024"]
[Site "Chess.com"]
[Date "2024.07.09"]
[Round "10"]
[White "maciek_92"]
[Black "TigrVShlyape"]
[Result "1-0"]
[WhiteElo "2859"]
[BlackElo "2968"]
[TimeControl "180+1"]
[EndTime "9:55:18 PDT"]
[Termination "maciek_92 won by resignation"]

1. e4 {[%clk 0:03:00.9]} 1... c5 {[%clk 0:02:52.8]} 2. Nc3 {[%clk 0:03:01.8]}
2... e6 {[%clk 0:02:52.4]} 3. f4 {[%clk 0:03:02.7]} 3... d5 {[%clk 0:02:52.1]}
4. Nf3 {[%clk 0:02:59.2]} 4... dxe4 {[%clk 0:02:51.8]} 5. Nxe4 {[%clk
0:02:59.4]} 5... Nc6 {[%clk 0:02:51.2]} 6. Bb5 {[%clk 0:02:57.6]} 6... Bd7
{[%clk 0:02:51.6]} 7. O-O {[%clk 0:02:57.3]} 7... Nf6 {[%clk 0:02:50]} 8. d3
{[%clk 0:02:55.7]} 8... Be7 {[%clk 0:02:49.1]} 9. Kh1 {[%clk 0:02:54.7]} 9...
O-O {[%clk 0:02:49]} 10. Be3 {[%clk 0:02:55.1]} 10... Nd4 {[%clk 0:02:44.3]} 11.
Bxd7 {[%clk 0:02:53.3]} 11... Qxd7 {[%clk 0:02:44.1]} 12. Bxd4 {[%clk
0:02:52.3]} 12... cxd4 {[%clk 0:02:43.8]} 13. Nxf6+ {[%clk 0:02:50.3]} 13...
Bxf6 {[%clk 0:02:43.4]} 14. a4 {[%clk 0:02:47.7]} 14... Rac8 {[%clk 0:02:41.5]}
15. Nd2 {[%clk 0:02:43.5]} 15... b6 {[%clk 0:02:38.7]} 16. Rf2 {[%clk 0:02:42]}
16... Be7 {[%clk 0:02:33.9]} 17. Nc4 {[%clk 0:02:38.2]} 17... Rc5 {[%clk
0:02:31.8]} 18. b4 {[%clk 0:02:33.1]} 18... Rd5 {[%clk 0:02:30.2]} 19. b5 {[%clk
0:02:31.3]} 19... Bd6 {[%clk 0:02:27.8]} 20. Qe2 {[%clk 0:02:27.1]} 20... Bc7
{[%clk 0:02:27.6]} 21. Rf3 {[%clk 0:02:09.4]} 21... g6 {[%clk 0:01:53.3]} 22.
Rff1 {[%clk 0:02:07.3]} 22... Qe7 {[%clk 0:01:48.7]} 23. g3 {[%clk 0:02:05.4]}
23... Qf6 {[%clk 0:01:48.8]} 24. Rfb1 {[%clk 0:01:52.2]} 24... h5 {[%clk
0:01:47.8]} 25. h4 {[%clk 0:01:48.6]} 25... e5 {[%clk 0:01:40.5]} 26. fxe5
{[%clk 0:01:43.4]} 26... Bxe5 {[%clk 0:01:39.9]} 27. Rf1 {[%clk 0:01:42.7]}
27... Qe6 {[%clk 0:01:34.9]} 28. Rae1 {[%clk 0:01:40.6]} 28... Bxg3 {[%clk
0:01:21.6]} 29. Qxe6 {[%clk 0:01:39.8]} 29... fxe6 {[%clk 0:01:21.8]} 30. Rxf8+
{[%clk 0:01:40.5]} 30... Kxf8 {[%clk 0:01:22.1]} 31. Rxe6 {[%clk 0:01:41.3]}
31... Kf7 {[%clk 0:01:19.8]} 32. Rc6 {[%clk 0:01:41.9]} 32... Bxh4 {[%clk
0:01:12.3]} 33. Rc7+ {[%clk 0:01:41.6]} 33... Ke6 {[%clk 0:01:11.4]} 34. Rxa7
{[%clk 0:01:42.2]} 34... Rf5 {[%clk 0:01:06.9]} 35. Nxb6 {[%clk 0:01:37.9]}
35... Rf1+ {[%clk 0:01:05.5]} 36. Kg2 {[%clk 0:01:37.7]} 36... Rf2+ {[%clk
0:01:05.9]} 37. Kg1 {[%clk 0:01:36.4]} 37... Rxc2 {[%clk 0:01:03.4]} 38. Nc4
{[%clk 0:01:36.4]} 38... Rc3 {[%clk 0:00:51.3]} 39. a5 {[%clk 0:01:32.8]} 39...
Rxd3 {[%clk 0:00:51.1]} 40. a6 {[%clk 0:01:33.5]} 40... Rb3 {[%clk 0:00:50.5]}
41. Rb7 {[%clk 0:01:31.8]} 41... d3 {[%clk 0:00:44]} 42. a7 {[%clk 0:01:30.6]}
42... Ra3 {[%clk 0:00:43.6]} 43. Rb6+ {[%clk 0:01:18.4]} 1-0

[Event "Early-Titled-Tuesday-Blitz-July-09-2024"]
[Site "Chess.com"]
[Date "2024.07.09"]
[Round "10"]
[White "amanjazu"]
[Black "Veleamater"]
[Result "1-0"]
[WhiteElo "2589"]
[BlackElo "2422"]
[TimeControl "180+1"]
[EndTime "9:55:23 PDT"]
[Termination "amanjazu won by resignation"]

1. g3 {[%clk 0:03:00.9]} 1... d6 {[%clk 0:03:00.9]} 2. Bg2 {[%clk 0:03:01.4]}
2... g6 {[%clk 0:02:58.9]} 3. f4 {[%clk 0:03:01.9]} 3... Nc6 {[%clk 0:02:53.9]}
4. Nf3 {[%clk 0:03:02.3]} 4... Bg7 {[%clk 0:02:53.4]} 5. O-O {[%clk 0:03:03]}
5... h6 {[%clk 0:02:49]} 6. Nc3 {[%clk 0:03:03.3]} 6... Nf6 {[%clk 0:02:47.4]}
7. e4 {[%clk 0:03:03.1]} 7... O-O {[%clk 0:02:47.2]} 8. d4 {[%clk 0:03:03]} 8...
e6 {[%clk 0:02:44]} 9. e5 {[%clk 0:03:01.6]} 9... Nd5 {[%clk 0:02:38.4]} 10.
Nxd5 {[%clk 0:03:00.7]} 10... exd5 {[%clk 0:02:38.3]} 11. c3 {[%clk 0:03:00.9]}
11... Bf5 {[%clk 0:02:35.9]} 12. Qb3 {[%clk 0:03:00.6]} 12... dxe5 {[%clk
0:02:33.7]} 13. Nxe5 {[%clk 0:02:59.2]} 13... Nxe5 {[%clk 0:02:32.5]} 14. fxe5
{[%clk 0:03:00.1]} 14... c6 {[%clk 0:02:32.3]} 15. Qxb7 {[%clk 0:03:00.2]} 15...
Qc8 {[%clk 0:02:25.5]} 16. Qxc8 {[%clk 0:02:57.6]} 16... Rfxc8 {[%clk
0:02:24.9]} 17. Rf2 {[%clk 0:02:57.7]} 17... Be6 {[%clk 0:02:24.3]} 18. Be3
{[%clk 0:02:56.8]} 18... c5 {[%clk 0:02:23.6]} 19. dxc5 {[%clk 0:02:45]} 19...
Rab8 {[%clk 0:02:21]} 20. Rd1 {[%clk 0:02:42.7]} 20... a5 {[%clk 0:02:16.1]} 21.
Bxd5 {[%clk 0:02:23]} 21... Rd8 {[%clk 0:01:57.4]} 22. Rfd2 {[%clk 0:02:19.8]}
22... Rxd5 {[%clk 0:01:55.7]} 23. Rxd5 {[%clk 0:02:20.7]} 23... Rxb2 {[%clk
0:01:55.5]} 24. c6 {[%clk 0:02:17.3]} 24... Re2 {[%clk 0:01:39]} 25. Bf4 {[%clk
0:01:48.2]} 25... g5 {[%clk 0:01:38.6]} 26. c7 {[%clk 0:01:42.6]} 26... gxf4
{[%clk 0:01:37.2]} 27. gxf4 {[%clk 0:01:43.5]} 27... Rxa2 {[%clk 0:01:26.3]} 28.
Rd6 {[%clk 0:01:29]} 28... Bf5 {[%clk 0:01:21.3]} 29. e6 {[%clk 0:01:24.4]}
29... Be4 {[%clk 0:01:11.1]} 30. c8=Q+ {[%clk 0:00:59.8]} 30... Kh7 {[%clk
0:01:04.7]} 31. exf7 {[%clk 0:00:54.7]} 31... Rg2+ {[%clk 0:01:03.6]} 32. Kf1
{[%clk 0:00:54.4]} 32... Bh8 {[%clk 0:00:57.4]} 33. f8=Q {[%clk 0:00:41.4]} 1-0

[Event "Early-Titled-Tuesday-Blitz-July-09-2024"]
[Site "Chess.com"]
[Date "2024.07.09"]
[Round "10"]
[White "Zq1"]
[Black "Potosino1970"]
[Result "0-1"]
[WhiteElo "2591"]
[BlackElo "2715"]
[TimeControl "180+1"]
[EndTime "9:55:24 PDT"]
[Termination "Potosino1970 won by resignation"]

1. d4 {[%clk 0:03:00.9]} 1... Nf6 {[%clk 0:02:59.6]} 2. c4 {[%clk 0:03:00.9]}
2... g6 {[%clk 0:02:58.7]} 3. Nc3 {[%clk 0:03:00.9]} 3... Bg7 {[%clk 0:02:58.9]}
4. e4 {[%clk 0:03:00.3]} 4... d6 {[%clk 0:02:59.3]} 5. Nf3 {[%clk 0:03:00.4]}
5... O-O {[%clk 0:02:59.2]} 6. Be2 {[%clk 0:03:00.5]} 6... Nbd7 {[%clk
0:02:59.1]} 7. O-O {[%clk 0:02:59.7]} 7... e5 {[%clk 0:02:59.3]} 8. Be3 {[%clk
0:02:59.8]} 8... Qe7 {[%clk 0:02:57.1]} 9. Qc2 {[%clk 0:02:58.7]} 9... exd4
{[%clk 0:02:52.9]} 10. Nxd4 {[%clk 0:02:57.8]} 10... Re8 {[%clk 0:02:53.1]} 11.
f3 {[%clk 0:02:56.6]} 11... c6 {[%clk 0:02:53.2]} 12. Rfe1 {[%clk 0:02:48.7]}
12... Nh5 {[%clk 0:02:52.7]} 13. Rad1 {[%clk 0:02:45.2]} 13... Be5 {[%clk
0:02:45.5]} 14. Bf2 {[%clk 0:02:37.8]} 14... Qg5 {[%clk 0:02:39.9]} 15. Bf1
{[%clk 0:02:35.3]} 15... a5 {[%clk 0:02:38.8]} 16. Kh1 {[%clk 0:02:21.7]} 16...
Nc5 {[%clk 0:02:35.2]} 17. Nde2 {[%clk 0:02:10]} 17... f5 {[%clk 0:02:12.8]} 18.
Qd2 {[%clk 0:01:54.9]} 18... f4 {[%clk 0:02:09]} 19. g4 {[%clk 0:01:33.5]} 19...
Bxg4 {[%clk 0:02:04.6]} 20. fxg4 {[%clk 0:01:31]} 20... Qxg4 {[%clk 0:02:04.4]}
21. Ng1 {[%clk 0:01:27.1]} 21... f3 {[%clk 0:01:45]} 22. Bh3 {[%clk 0:01:22.7]}
22... Qf4 {[%clk 0:01:41.9]} 23. Qxf4 {[%clk 0:01:18.1]} 23... Nxf4 {[%clk
0:01:42.2]} 24. Bf1 {[%clk 0:01:13.7]} 24... Bxc3 {[%clk 0:01:39.1]} 25. bxc3
{[%clk 0:01:11.5]} 25... Nxe4 {[%clk 0:01:39.3]} 26. Rxe4 {[%clk 0:00:54.9]}
26... Rxe4 {[%clk 0:01:38.5]} 27. Nxf3 {[%clk 0:00:55]} 27... Rf8 {[%clk
0:01:32.4]} 28. Bg3 {[%clk 0:00:48.4]} 28... Nh5 {[%clk 0:01:28]} 29. Bg2 {[%clk
0:00:39.9]} 29... Nxg3+ {[%clk 0:01:27.5]} 30. hxg3 {[%clk 0:00:39.3]} 30...
Rxc4 {[%clk 0:01:27.7]} 31. Rxd6 {[%clk 0:00:34.8]} 31... Rxc3 {[%clk
0:01:27.5]} 0-1